[Event "Early-Titled-Tuesday-Blitz-March-05-2024"]
[Site "Chess.com"]
[Date "2024.03.05"]
[Round "3"]
[White "Egor_Koshulyan"]
[Black "evgchess5"]
[Result "1-0"]
[WhiteElo "2716"]
[BlackElo "2937"]
[TimeControl "180+1"]
[EndTime "8:31:21 PST"]
[Termination "Egor_Koshulyan won on time"]

1. f4 {[%clk 0:03:00.9]} 1... d5 {[%clk 0:02:56.2]} 2. Nf3 {[%clk 0:03:01]} 2...
Nf6 {[%clk 0:02:56.3]} 3. g3 {[%clk 0:03:01.4]} 3... g6 {[%clk 0:02:56.3]} 4.
Bg2 {[%clk 0:03:01.9]} 4... Bg7 {[%clk 0:02:56.6]} 5. O-O {[%clk 0:03:02.6]}
5... O-O {[%clk 0:02:56.8]} 6. d3 {[%clk 0:03:03.3]} 6... c5 {[%clk 0:02:56.8]}
7. Ne5 {[%clk 0:03:03.2]} 7... Nfd7 {[%clk 0:01:56.1]} 8. Nxd7 {[%clk
0:03:00.7]} 8... Qxd7 {[%clk 0:01:54.3]} 9. e4 {[%clk 0:02:59.6]} 9... dxe4
{[%clk 0:01:52.3]} 10. dxe4 {[%clk 0:03:00.5]} 10... Nc6 {[%clk 0:01:46.1]} 11.
c3 {[%clk 0:02:53.2]} 11... Qxd1 {[%clk 0:01:39]} 12. Rxd1 {[%clk 0:02:54.1]}
12... Bg4 {[%clk 0:01:38.4]} 13. Re1 {[%clk 0:02:54.5]} 13... Rad8 {[%clk
0:01:12.7]} 14. Be3 {[%clk 0:02:53.7]} 14... b6 {[%clk 0:01:11.6]} 15. Nd2
{[%clk 0:02:44.9]} 15... e5 {[%clk 0:01:08.7]} 16. f5 {[%clk 0:02:33.6]} 16...
gxf5 {[%clk 0:01:07.7]} 17. h3 {[%clk 0:02:26]} 17... f4 {[%clk 0:01:07]} 18.
gxf4 {[%clk 0:02:26.5]} 18... exf4 {[%clk 0:01:05.2]} 19. Bxf4 {[%clk
0:02:27.4]} 19... Be6 {[%clk 0:00:55.1]} 20. Nf3 {[%clk 0:02:24.8]} 20... h6
{[%clk 0:00:52.8]} 21. Nh4 {[%clk 0:02:10.2]} 21... Ne5 {[%clk 0:00:51.1]} 22.
Re2 {[%clk 0:01:53.7]} 22... Bc4 {[%clk 0:00:35.3]} 23. Rc2 {[%clk 0:01:53.7]}
23... Ng6 {[%clk 0:00:31.2]} 24. Bg3 {[%clk 0:01:45.8]} 24... Kh7 {[%clk
0:00:22.7]} 25. Nf5 {[%clk 0:01:45.1]} 25... Be5 {[%clk 0:00:22.8]} 26. Rf2
{[%clk 0:01:36.6]} 26... Bxg3 {[%clk 0:00:19.5]} 27. Nxg3 {[%clk 0:01:37.5]}
27... Ne5 {[%clk 0:00:18.4]} 28. Nh5 {[%clk 0:01:35]} 28... Be6 {[%clk
0:00:14.4]} 29. Nf6+ {[%clk 0:01:32.1]} 29... Kh8 {[%clk 0:00:14.4]} 30. Nd5
{[%clk 0:01:32.1]} 30... Rg8 {[%clk 0:00:14.1]} 31. Kh2 {[%clk 0:01:30.3]} 31...
Rg5 {[%clk 0:00:14]} 32. Rf6 {[%clk 0:01:17]} 32... Kg7 {[%clk 0:00:11.2]} 33.
Raf1 {[%clk 0:01:17.2]} 33... Rg6 {[%clk 0:00:08.4]} 34. R6f2 {[%clk 0:01:16]}
34... Rg5 {[%clk 0:00:07]} 35. Rf6 {[%clk 0:01:13.2]} 35... Rg6 {[%clk
0:00:06.1]} 36. R6f2 {[%clk 0:01:13]} 36... Rg5 {[%clk 0:00:06.3]} 37. Re2
{[%clk 0:01:06.3]} 37... c4 {[%clk 0:00:05.6]} 38. b3 {[%clk 0:01:03.8]} 38...
Rc8 {[%clk 0:00:04.3]} 39. Re3 {[%clk 0:00:55.1]} 39... Re8 {[%clk 0:00:02.8]}
40. Nf6 {[%clk 0:00:40.6]} 40... Rd8 {[%clk 0:00:01.9]} 41. Nd5 {[%clk
0:00:36.6]} 41... Rg6 {[%clk 0:00:01.2]} 42. Nf4 {[%clk 0:00:35.4]} 42... Rg5
{[%clk 0:00:01.1]} 43. Nxe6+ {[%clk 0:00:31.6]} 43... fxe6 {[%clk 0:00:01.9]}
44. bxc4 {[%clk 0:00:32.5]} 1-0

[Event "Early-Titled-Tuesday-Blitz-March-05-2024"]
[Site "Chess.com"]
[Date "2024.03.05"]
[Round "3"]
[White "Chernov_Alexander_A"]
[Black "Happy1712Drummer"]
[Result "1-0"]
[WhiteElo "2337"]
[BlackElo "2311"]
[TimeControl "180+1"]
[EndTime "8:31:22 PST"]
[Termination "Chernov_Alexander_A won on time"]

1. d4 {[%clk 0:03:00.9]} 1... d5 {[%clk 0:02:59]} 2. Nf3 {[%clk 0:02:57.4]} 2...
c5 {[%clk 0:02:58.6]} 3. c4 {[%clk 0:02:54.5]} 3... Nf6 {[%clk 0:02:55.3]} 4.
cxd5 {[%clk 0:02:50]} 4... Nxd5 {[%clk 0:02:54.6]} 5. e4 {[%clk 0:02:48]} 5...
Nf6 {[%clk 0:02:51.5]} 6. d5 {[%clk 0:02:47.7]} 6... e6 {[%clk 0:02:46.5]} 7.
Nc3 {[%clk 0:02:46.9]} 7... exd5 {[%clk 0:02:31.2]} 8. e5 {[%clk 0:02:46.5]}
8... Ne4 {[%clk 0:02:03]} 9. Nxd5 {[%clk 0:02:42.9]} 9... Nc6 {[%clk 0:01:58.6]}
10. Bc4 {[%clk 0:02:32.9]} 10... Be6 {[%clk 0:01:56.6]} 11. O-O {[%clk
0:02:29.5]} 11... Be7 {[%clk 0:01:51.4]} 12. Re1 {[%clk 0:02:28.1]} 12... Bf5
{[%clk 0:01:39.2]} 13. Nxe7 {[%clk 0:01:44.3]} 13... Qxe7 {[%clk 0:01:32.9]} 14.
Bd5 {[%clk 0:01:42.7]} 14... Rd8 {[%clk 0:01:28.7]} 15. Qb3 {[%clk 0:01:40.2]}
15... c4 {[%clk 0:00:47.5]} 16. Qxc4 {[%clk 0:01:35.9]} 16... Nc5 {[%clk
0:00:47.6]} 17. Be3 {[%clk 0:01:26.8]} 17... Ne6 {[%clk 0:00:45.6]} 18. Bxc6+
{[%clk 0:01:17.1]} 18... bxc6 {[%clk 0:00:45.6]} 19. Qxc6+ {[%clk 0:01:16.9]}
19... Rd7 {[%clk 0:00:43]} 20. Rad1 {[%clk 0:01:14.3]} 20... Nd8 {[%clk
0:00:39.4]} 21. Qa4 {[%clk 0:01:01.3]} 21... O-O {[%clk 0:00:36]} 22. Rxd7
{[%clk 0:01:00.1]} 22... Bxd7 {[%clk 0:00:35.9]} 23. Qxa7 {[%clk 0:00:59.7]}
23... Nc6 {[%clk 0:00:35.7]} 24. Qc5 {[%clk 0:00:58.8]} 24... Qe6 {[%clk
0:00:32.5]} 25. Qd6 {[%clk 0:00:56.9]} 25... Qg4 {[%clk 0:00:31.1]} 26. h3
{[%clk 0:00:55.1]} 26... Qb4 {[%clk 0:00:27]} 27. Qxd7 {[%clk 0:00:51.8]} 27...
Nxe5 {[%clk 0:00:22.9]} 28. Qd1 {[%clk 0:00:33.7]} 28... Nxf3+ {[%clk
0:00:12.8]} 29. gxf3 {[%clk 0:00:33.4]} 29... g6 {[%clk 0:00:12]} 30. Qd2 {[%clk
0:00:30.7]} 30... Qh4 {[%clk 0:00:11.3]} 31. Kg2 {[%clk 0:00:29]} 31... Rc8
{[%clk 0:00:08.8]} 32. Bg5 {[%clk 0:00:28]} 32... Qa4 {[%clk 0:00:08.5]} 33. Qf4
{[%clk 0:00:26]} 33... Qa5 {[%clk 0:00:05.3]} 34. Re7 {[%clk 0:00:21.1]} 34...
Qb6 {[%clk 0:00:02.6]} 35. Qxf7+ {[%clk 0:00:16.3]} 1-0

[Event "Early-Titled-Tuesday-Blitz-March-05-2024"]
[Site "Chess.com"]
[Date "2024.03.05"]
[Round "3"]
[White "crazy_m_attack"]
[Black "SlavenPastar"]
[Result "1-0"]
[WhiteElo "2487"]
[BlackElo "2628"]
[TimeControl "180+1"]
[EndTime "8:31:23 PST"]
[Termination "crazy_m_attack won on time"]

1. e4 {[%clk 0:03:00.9]} 1... b6 {[%clk 0:02:59.8]} 2. d4 {[%clk 0:02:59.4]}
2... Bb7 {[%clk 0:03:00.3]} 3. Nc3 {[%clk 0:02:59.6]} 3... e6 {[%clk 0:02:59.9]}
4. a3 {[%clk 0:02:59.2]} 4... d6 {[%clk 0:02:57.9]} 5. Bd3 {[%clk 0:02:58]} 5...
Nd7 {[%clk 0:02:58.4]} 6. Nf3 {[%clk 0:02:56.7]} 6... g6 {[%clk 0:02:58.1]} 7.
O-O {[%clk 0:02:56.4]} 7... Bg7 {[%clk 0:02:58.8]} 8. Re1 {[%clk 0:02:56.9]}
8... Ne7 {[%clk 0:02:59]} 9. Be3 {[%clk 0:02:49.6]} 9... O-O {[%clk 0:02:58.1]}
10. Qd2 {[%clk 0:02:48.6]} 10... Re8 {[%clk 0:02:57.8]} 11. Bh6 {[%clk
0:02:45.7]} 11... Bh8 {[%clk 0:02:57.9]} 12. Rad1 {[%clk 0:02:42]} 12... a6
{[%clk 0:02:56.9]} 13. Ne2 {[%clk 0:02:32.6]} 13... c5 {[%clk 0:02:45.9]} 14. c3
{[%clk 0:02:31.8]} 14... b5 {[%clk 0:02:37.9]} 15. Ng3 {[%clk 0:02:26.3]} 15...
Qb6 {[%clk 0:02:34]} 16. Bb1 {[%clk 0:02:20.9]} 16... c4 {[%clk 0:02:21]} 17.
Qf4 {[%clk 0:02:12.4]} 17... e5 {[%clk 0:01:58.9]} 18. Qh4 {[%clk 0:01:51.6]}
18... f6 {[%clk 0:01:51.4]} 19. Qg4 {[%clk 0:01:43.2]} 19... Nf8 {[%clk
0:01:40.7]} 20. Nf5 {[%clk 0:01:07.2]} 20... Bc8 {[%clk 0:01:38.3]} 21. Qg3
{[%clk 0:01:06.6]} 21... Kf7 {[%clk 0:00:27.3]} 22. Nxe7 {[%clk 0:00:39]} 22...
Rxe7 {[%clk 0:00:27.3]} 23. Be3 {[%clk 0:00:39.7]} 23... Qc7 {[%clk 0:00:25]}
24. h4 {[%clk 0:00:34.7]} 24... h5 {[%clk 0:00:23.7]} 25. Nh2 {[%clk 0:00:29.9]}
25... Bg7 {[%clk 0:00:20.5]} 26. Bc1 {[%clk 0:00:20.5]} 26... Ne6 {[%clk
0:00:15.2]} 27. Nf1 {[%clk 0:00:20.4]} 27... Bb7 {[%clk 0:00:10.9]} 28. f4
{[%clk 0:00:18]} 28... Rg8 {[%clk 0:00:08.3]} 29. fxe5 {[%clk 0:00:15.3]} 29...
fxe5 {[%clk 0:00:07.6]} 30. d5 {[%clk 0:00:15.6]} 30... Nc5 {[%clk 0:00:06.5]}
31. Nd2 {[%clk 0:00:12.2]} 31... Ke8 {[%clk 0:00:06.7]} 32. Qxg6+ {[%clk
0:00:10.3]} 32... Kd8 {[%clk 0:00:05.5]} 33. Nf3 {[%clk 0:00:10.7]} 33... Qd7
{[%clk 0:00:04.2]} 34. Bg5 {[%clk 0:00:10.3]} 1-0

[Event "Early-Titled-Tuesday-Blitz-March-05-2024"]
[Site "Chess.com"]
[Date "2024.03.05"]
[Round "3"]
[White "amylazy"]
[Black "rnanjo"]
[Result "1-0"]
[WhiteElo "2407"]
[BlackElo "2566"]
[TimeControl "180+1"]
[EndTime "8:31:24 PST"]
[Termination "amylazy won by checkmate"]

1. d4 {[%clk 0:02:51.6]} 1... Nf6 {[%clk 0:02:58.4]} 2. Nf3 {[%clk 0:02:52.1]}
2... d5 {[%clk 0:02:54.2]} 3. c4 {[%clk 0:02:49.6]} 3... e6 {[%clk 0:02:54.2]}
4. g3 {[%clk 0:02:49.2]} 4... Be7 {[%clk 0:02:53.4]} 5. Bg2 {[%clk 0:02:48.4]}
5... O-O {[%clk 0:02:53.6]} 6. O-O {[%clk 0:02:49.1]} 6... dxc4 {[%clk
0:02:51.2]} 7. Ne5 {[%clk 0:02:49.1]} 7... Nd5 {[%clk 0:02:46.1]} 8. Nxc4 {[%clk
0:02:47.9]} 8... b5 {[%clk 0:02:44.6]} 9. Ne5 {[%clk 0:02:48.2]} 9... Bb7 {[%clk
0:02:35.1]} 10. Qb3 {[%clk 0:02:48.3]} 10... a6 {[%clk 0:02:30.6]} 11. e4 {[%clk
0:02:47.2]} 11... Nf6 {[%clk 0:02:19.4]} 12. Qe3 {[%clk 0:02:35.9]} 12... Nbd7
{[%clk 0:02:16.4]} 13. Nxd7 {[%clk 0:02:35.6]} 13... Qxd7 {[%clk 0:02:14]} 14.
Nc3 {[%clk 0:02:35.8]} 14... Rfd8 {[%clk 0:02:12.1]} 15. Rd1 {[%clk 0:02:35.1]}
15... b4 {[%clk 0:01:59.4]} 16. Ne2 {[%clk 0:02:34.6]} 16... c5 {[%clk
0:01:59.5]} 17. b3 {[%clk 0:01:52.4]} 17... cxd4 {[%clk 0:01:46]} 18. Rxd4
{[%clk 0:01:51.9]} 18... Qb5 {[%clk 0:01:45.6]} 19. Bb2 {[%clk 0:01:49.8]} 19...
Bc5 {[%clk 0:01:43.3]} 20. Rxd8+ {[%clk 0:01:48.9]} 20... Rxd8 {[%clk
0:01:44.2]} 21. Bd4 {[%clk 0:01:42.1]} 21... Ng4 {[%clk 0:01:36.8]} 22. Qg5
{[%clk 0:01:06]} 22... f6 {[%clk 0:01:17.9]} 23. Qxg4 {[%clk 0:01:05.9]} 23...
Bxd4 {[%clk 0:01:12.5]} 24. Nxd4 {[%clk 0:01:05.4]} 24... Rxd4 {[%clk
0:01:12.2]} 25. Qxe6+ {[%clk 0:01:06]} 25... Kf8 {[%clk 0:01:09.6]} 26. e5
{[%clk 0:00:47.7]} 26... Bxg2 {[%clk 0:01:05.9]} 27. exf6 {[%clk 0:00:40.5]}
27... Qb7 {[%clk 0:00:53.3]} 28. fxg7+ {[%clk 0:00:38.5]} 28... Kxg7 {[%clk
0:00:32.3]} 29. Qe5+ {[%clk 0:00:38.4]} 29... Kg8 {[%clk 0:00:31.2]} 30. Qxd4
{[%clk 0:00:32.1]} 30... Bh1 {[%clk 0:00:30.6]} 31. Qg4+ {[%clk 0:00:29.7]}
31... Kh8 {[%clk 0:00:30]} 32. f3 {[%clk 0:00:27.7]} 32... Bxf3 {[%clk
0:00:30.2]} 33. Qd4+ {[%clk 0:00:27.5]} 33... Kg8 {[%clk 0:00:30.1]} 34. Re1
{[%clk 0:00:24.7]} 34... Bh1 {[%clk 0:00:19.5]} 35. Qd8+ {[%clk 0:00:21.5]}
35... Kf7 {[%clk 0:00:19.9]} 36. Qe8+ {[%clk 0:00:20.2]} 36... Kf6 {[%clk
0:00:19.5]} 37. Rf1+ {[%clk 0:00:16.8]} 37... Kg7 {[%clk 0:00:18.7]} 38. Qf8+
{[%clk 0:00:16.8]} 38... Kg6 {[%clk 0:00:18.5]} 39. Rf6+ {[%clk 0:00:15.9]}
39... Kg5 {[%clk 0:00:18.8]} 40. Qh6+ {[%clk 0:00:16.5]} 40... Kg4 {[%clk
0:00:18.7]} 41. Qh4# {[%clk 0:00:17.1]} 1-0

[Event "Early-Titled-Tuesday-Blitz-March-05-2024"]
[Site "Chess.com"]
[Date "2024.03.05"]
[Round "3"]
[White "Ducke13"]
[Black "Ralf61"]
[Result "0-1"]
[WhiteElo "2348"]
[BlackElo "2573"]
[TimeControl "180+1"]
[EndTime "8:31:24 PST"]
[Termination "Ralf61 won on time"]

1. Nf3 {[%clk 0:03:00.5]} 1... Nf6 {[%clk 0:02:58.5]} 2. c4 {[%clk 0:02:55]}
2... b6 {[%clk 0:02:56.7]} 3. g3 {[%clk 0:02:52.6]} 3... Bb7 {[%clk 0:02:56.2]}
4. Bg2 {[%clk 0:02:53.3]} 4... c5 {[%clk 0:02:55.4]} 5. O-O {[%clk 0:02:50.9]}
5... e6 {[%clk 0:02:55.2]} 6. Nc3 {[%clk 0:02:49.6]} 6... Be7 {[%clk 0:02:54]}
7. d4 {[%clk 0:02:50.2]} 7... cxd4 {[%clk 0:02:53.9]} 8. Qxd4 {[%clk 0:02:51.1]}
8... d6 {[%clk 0:02:53.2]} 9. Rd1 {[%clk 0:02:43.3]} 9... a6 {[%clk 0:02:51.7]}
10. b3 {[%clk 0:02:40.7]} 10... Nbd7 {[%clk 0:02:47.2]} 11. Bb2 {[%clk 0:02:40]}
11... O-O {[%clk 0:02:46.1]} 12. Rac1 {[%clk 0:02:39.2]} 12... Re8 {[%clk
0:02:44]} 13. Ng5 {[%clk 0:02:24.2]} 13... Bxg2 {[%clk 0:02:39.4]} 14. Kxg2
{[%clk 0:02:25.1]} 14... Qc7 {[%clk 0:02:39.2]} 15. Nce4 {[%clk 0:02:22.3]}
15... h6 {[%clk 0:02:20.7]} 16. Nf3 {[%clk 0:02:05.5]} 16... Nc5 {[%clk
0:02:01.5]} 17. Nxd6 {[%clk 0:01:55.6]} 17... Red8 {[%clk 0:02:00.7]} 18. b4
{[%clk 0:01:00.5]} 18... Rxd6 {[%clk 0:01:58.5]} 19. Qf4 {[%clk 0:00:54.1]}
19... Nce4 {[%clk 0:01:41.3]} 20. Be5 {[%clk 0:00:47.5]} 20... Qc6 {[%clk
0:01:26.5]} 21. b5 {[%clk 0:00:36.1]} 21... Qd7 {[%clk 0:01:12]} 22. Bxd6 {[%clk
0:00:33.2]} 22... Bxd6 {[%clk 0:01:11.7]} 23. Ne5 {[%clk 0:00:25.8]} 23... Qc7
{[%clk 0:01:04.6]} 24. Rxd6 {[%clk 0:00:18]} 24... Qxd6 {[%clk 0:01:03.1]} 25.
Nc6 {[%clk 0:00:17.5]} 25... Qxf4 {[%clk 0:01:00.1]} 26. gxf4 {[%clk 0:00:18.4]}
26... axb5 {[%clk 0:00:59.5]} 27. cxb5 {[%clk 0:00:19.3]} 27... Rxa2 {[%clk
0:00:58.4]} 28. Re1 {[%clk 0:00:10.5]} 28... Nc5 {[%clk 0:00:56.8]} 29. Ne5
{[%clk 0:00:05.1]} 29... Nd5 {[%clk 0:00:55.2]} 30. Kf3 {[%clk 0:00:04.5]} 30...
Rb2 {[%clk 0:00:51.9]} 31. Nc4 {[%clk 0:00:02.6]} 31... Rxb5 {[%clk 0:00:49.6]}
32. e4 {[%clk 0:00:02]} 32... Rb3+ {[%clk 0:00:49.3]} 33. Ne3 {[%clk 0:00:01.5]}
33... Nxe3 {[%clk 0:00:45.3]} 34. fxe3 {[%clk 0:00:02.4]} 34... Kf8 {[%clk
0:00:43.9]} 35. h4 {[%clk 0:00:02.6]} 35... Ke7 {[%clk 0:00:43.5]} 36. h5 {[%clk
0:00:03.3]} 36... Rb2 {[%clk 0:00:41.4]} 37. Rg1 {[%clk 0:00:03.7]} 37... Kf8
{[%clk 0:00:40]} 38. Rd1 {[%clk 0:00:03.2]} 38... Rh2 {[%clk 0:00:37.8]} 39.
Rd8+ {[%clk 0:00:03.2]} 39... Ke7 {[%clk 0:00:37.9]} 40. Rg8 {[%clk 0:00:04.1]}
40... Rh3+ {[%clk 0:00:36.7]} 41. Ke2 {[%clk 0:00:02.6]} 41... Nxe4 {[%clk
0:00:35.4]} 42. Rxg7 {[%clk 0:00:02.5]} 42... Rxh5 {[%clk 0:00:35.3]} 43. Kd3
{[%clk 0:00:02.1]} 43... Nf6 {[%clk 0:00:34.1]} 44. Rg2 {[%clk 0:00:01]} 44...
Rh1 {[%clk 0:00:31.1]} 45. Rb2 {[%clk 0:00:01.3]} 45... Nd7 {[%clk 0:00:31]} 0-1

[Event "Early-Titled-Tuesday-Blitz-March-05-2024"]
[Site "Chess.com"]
[Date "2024.03.05"]
[Round "3"]
[White "Fandorine"]
[Black "Kildepiotr"]
[Result "1-0"]
[WhiteElo "2939"]
[BlackElo "2687"]
[TimeControl "180+1"]
[EndTime "8:31:26 PST"]
[Termination "Fandorine won by resignation"]

1. d4 {[%clk 0:03:00.9]} 1... Nf6 {[%clk 0:02:57.8]} 2. c4 {[%clk 0:03:01.3]}
2... c5 {[%clk 0:02:57.9]} 3. Nf3 {[%clk 0:02:59.8]} 3... cxd4 {[%clk
0:02:57.8]} 4. Nxd4 {[%clk 0:03:00.2]} 4... Nc6 {[%clk 0:02:52.9]} 5. Nc3 {[%clk
0:02:57.8]} 5... e5 {[%clk 0:02:50.9]} 6. Nc2 {[%clk 0:02:45.2]} 6... Bc5 {[%clk
0:02:47.7]} 7. g3 {[%clk 0:02:39.9]} 7... d6 {[%clk 0:02:46.9]} 8. Bg2 {[%clk
0:02:39.9]} 8... Be6 {[%clk 0:02:46.1]} 9. b3 {[%clk 0:02:39.4]} 9... O-O {[%clk
0:02:42.4]} 10. O-O {[%clk 0:02:38.4]} 10... Rc8 {[%clk 0:02:41.9]} 11. Be3
{[%clk 0:02:34.3]} 11... a6 {[%clk 0:02:35.7]} 12. Rc1 {[%clk 0:02:27.6]} 12...
Qa5 {[%clk 0:02:27.6]} 13. Qd2 {[%clk 0:02:19.8]} 13... Rfd8 {[%clk 0:02:18.8]}
14. Rfd1 {[%clk 0:02:13.3]} 14... Ng4 {[%clk 0:02:16.7]} 15. Bxc5 {[%clk
0:02:04.6]} 15... dxc5 {[%clk 0:02:15.3]} 16. Qe1 {[%clk 0:01:57.5]} 16... Rxd1
{[%clk 0:02:01.2]} 17. Rxd1 {[%clk 0:01:57.4]} 17... Nd4 {[%clk 0:01:56.9]} 18.
Nd5 {[%clk 0:01:28.3]} 18... Qxe1+ {[%clk 0:01:48.5]} 19. Nxe1 {[%clk
0:01:28.1]} 19... Bxd5 {[%clk 0:01:46.4]} 20. Bxd5 {[%clk 0:01:12.4]} 20... Rc7
{[%clk 0:01:27]} 21. e3 {[%clk 0:01:06.6]} 21... Ne2+ {[%clk 0:01:26.1]} 22. Kf1
{[%clk 0:01:06.2]} 22... Nc3 {[%clk 0:01:26.2]} 23. Rd3 {[%clk 0:01:04.6]} 23...
Nxa2 {[%clk 0:01:14.2]} 24. Bf3 {[%clk 0:01:04.2]} 24... h5 {[%clk 0:01:14.4]}
25. Rd8+ {[%clk 0:00:57.2]} 25... Kh7 {[%clk 0:01:14.4]} 26. Kg2 {[%clk
0:00:55]} 26... b5 {[%clk 0:01:09.2]} 27. Ra8 {[%clk 0:00:39.1]} 27... bxc4
{[%clk 0:01:05.9]} 28. bxc4 {[%clk 0:00:40]} 28... Nb4 {[%clk 0:01:06.1]} 29.
Be4+ {[%clk 0:00:27.6]} 29... g6 {[%clk 0:01:05.8]} 30. Nf3 {[%clk 0:00:28]}
30... Kg7 {[%clk 0:01:01.7]} 31. Bb1 {[%clk 0:00:19.1]} 31... f6 {[%clk
0:00:46.8]} 32. h3 {[%clk 0:00:18]} 32... Nh6 {[%clk 0:00:46.5]} 33. Re8 {[%clk
0:00:16.1]} 33... Nf7 {[%clk 0:00:44.2]} 34. Nh4 {[%clk 0:00:16.7]} 34... f5
{[%clk 0:00:43.3]} 35. g4 {[%clk 0:00:16.7]} 35... hxg4 {[%clk 0:00:31]} 36.
hxg4 {[%clk 0:00:17.6]} 36... Nd6 {[%clk 0:00:28.1]} 37. Re6 {[%clk 0:00:15]}
37... Nxc4 {[%clk 0:00:28.3]} 38. Rxg6+ {[%clk 0:00:15.3]} 38... Kf7 {[%clk
0:00:28.8]} 39. Bxf5 {[%clk 0:00:15.2]} 39... Nd2 {[%clk 0:00:21.2]} 40. Rh6
{[%clk 0:00:14]} 40... Ke7 {[%clk 0:00:20.5]} 41. g5 {[%clk 0:00:13.8]} 41... a5
{[%clk 0:00:19.2]} 42. g6 {[%clk 0:00:14.3]} 42... Kf6 {[%clk 0:00:19]} 43. g7+
{[%clk 0:00:09.8]} 1-0

[Event "Early-Titled-Tuesday-Blitz-March-05-2024"]
[Site "Chess.com"]
[Date "2024.03.05"]
[Round "3"]
[White "RianKapriaga"]
[Black "Let_it_be_1"]
[Result "0-1"]
[WhiteElo "2297"]
[BlackElo "2574"]
[TimeControl "180+1"]
[EndTime "8:31:26 PST"]
[Termination "Let_it_be_1 won on time"]

1. d4 {[%clk 0:03:00.9]} 1... d5 {[%clk 0:02:58.5]} 2. Nf3 {[%clk 0:03:00.1]}
2... e6 {[%clk 0:02:58.7]} 3. Bf4 {[%clk 0:02:56]} 3... Bd6 {[%clk 0:02:58.8]}
4. Bg3 {[%clk 0:02:52.8]} 4... Nf6 {[%clk 0:02:58.3]} 5. e3 {[%clk 0:02:52.3]}
5... b6 {[%clk 0:02:58.4]} 6. Nbd2 {[%clk 0:02:51.4]} 6... O-O {[%clk
0:02:53.7]} 7. Bd3 {[%clk 0:02:50.2]} 7... Ba6 {[%clk 0:02:53.6]} 8. c4 {[%clk
0:02:49.5]} 8... c5 {[%clk 0:02:50.3]} 9. O-O {[%clk 0:02:43.4]} 9... Bxg3
{[%clk 0:02:46.8]} 10. hxg3 {[%clk 0:02:40.2]} 10... Nc6 {[%clk 0:02:47]} 11.
Qe2 {[%clk 0:02:26.8]} 11... cxd4 {[%clk 0:02:39.6]} 12. exd4 {[%clk 0:01:32.6]}
12... dxc4 {[%clk 0:02:32.2]} 13. Bxc4 {[%clk 0:01:32.5]} 13... Bb7 {[%clk
0:02:21.4]} 14. Qe3 {[%clk 0:01:01.5]} 14... Qd6 {[%clk 0:02:06.6]} 15. Rfd1
{[%clk 0:00:57]} 15... Rfd8 {[%clk 0:02:04.6]} 16. Nf1 {[%clk 0:00:26.2]} 16...
Rac8 {[%clk 0:01:58.6]} 17. Rac1 {[%clk 0:00:24.5]} 17... Qb4 {[%clk 0:01:45.2]}
18. Qe2 {[%clk 0:00:18.8]} 18... h6 {[%clk 0:01:16.1]} 19. a3 {[%clk 0:00:18.2]}
19... Qd6 {[%clk 0:01:16.1]} 20. Qe3 {[%clk 0:00:15.4]} 20... Na5 {[%clk
0:01:12.6]} 21. Ba2 {[%clk 0:00:14]} 21... Bd5 {[%clk 0:01:10.7]} 22. Bb1 {[%clk
0:00:12.3]} 22... Nb3 {[%clk 0:00:58.2]} 23. Rxc8 {[%clk 0:00:10.5]} 23... Rxc8
{[%clk 0:00:59]} 24. Ne5 {[%clk 0:00:08.4]} 24... Na5 {[%clk 0:00:56.3]} 25. Nd2
{[%clk 0:00:07.8]} 25... Rc7 {[%clk 0:00:38.4]} 26. g4 {[%clk 0:00:07.3]} 26...
Nc6 {[%clk 0:00:27.7]} 27. g5 {[%clk 0:00:04.7]} 27... hxg5 {[%clk 0:00:26.7]}
28. Qxg5 {[%clk 0:00:05.6]} 28... Nxd4 {[%clk 0:00:26.7]} 29. Ndf3 {[%clk
0:00:04.5]} 29... Nxf3+ {[%clk 0:00:22.3]} 30. gxf3 {[%clk 0:00:03.1]} 30... Rc5
{[%clk 0:00:18.9]} 31. f4 {[%clk 0:00:01.1]} 31... Qf8 {[%clk 0:00:15.4]} 32.
Kh2 {[%clk 0:00:01.2]} 32... Be4 {[%clk 0:00:08.2]} 0-1

[Event "Early-Titled-Tuesday-Blitz-March-05-2024"]
[Site "Chess.com"]
[Date "2024.03.05"]
[Round "3"]
[White "Sina_Movahed"]
[Black "Rud_2008"]
[Result "1-0"]
[WhiteElo "3037"]
[BlackElo "2730"]
[TimeControl "180+1"]
[EndTime "8:31:28 PST"]
[Termination "Sina_Movahed won by resignation"]

1. Nf3 {[%clk 0:03:00.9]} 1... d5 {[%clk 0:03:00.1]} 2. c4 {[%clk 0:03:00.9]}
2... d4 {[%clk 0:03:00.1]} 3. b4 {[%clk 0:03:00.8]} 3... g5 {[%clk 0:02:59.5]}
4. Qa4+ {[%clk 0:02:59.7]} 4... c6 {[%clk 0:02:54.8]} 5. h3 {[%clk 0:02:59.8]}
5... Bg7 {[%clk 0:02:54.8]} 6. d3 {[%clk 0:02:53.8]} 6... h6 {[%clk 0:02:54.1]}
7. Nbd2 {[%clk 0:02:54.3]} 7... e5 {[%clk 0:02:52.1]} 8. g4 {[%clk 0:02:53.5]}
8... Ne7 {[%clk 0:02:52.2]} 9. Ne4 {[%clk 0:02:48.1]} 9... O-O {[%clk
0:02:38.8]} 10. h4 {[%clk 0:02:45]} 10... f5 {[%clk 0:02:38.7]} 11. gxf5 {[%clk
0:02:45.1]} 11... g4 {[%clk 0:02:39.2]} 12. f6 {[%clk 0:02:40.3]} 12... Bxf6
{[%clk 0:02:30.2]} 13. Nxf6+ {[%clk 0:02:02.5]} 13... Rxf6 {[%clk 0:02:28.9]}
14. Rg1 {[%clk 0:02:02.6]} 14... Qd6 {[%clk 0:01:38.8]} 15. c5 {[%clk
0:02:01.9]} 15... Qc7 {[%clk 0:01:25.9]} 16. Nd2 {[%clk 0:01:55.7]} 16... Bf5
{[%clk 0:01:22.5]} 17. Bg2 {[%clk 0:01:51.1]} 17... Nd7 {[%clk 0:01:20.3]} 18.
Ne4 {[%clk 0:01:50.5]} 18... Bxe4 {[%clk 0:01:16.5]} 19. Bxe4 {[%clk 0:01:51.4]}
19... h5 {[%clk 0:01:07.7]} 20. Bg5 {[%clk 0:01:51.7]} 20... Rf7 {[%clk
0:01:07.7]} 21. f3 {[%clk 0:01:51.3]} 21... Nd5 {[%clk 0:00:53.9]} 22. Qb3
{[%clk 0:01:32.3]} 22... a5 {[%clk 0:00:38.9]} 23. fxg4 {[%clk 0:01:26.8]} 23...
axb4 {[%clk 0:00:18.1]} 24. gxh5 {[%clk 0:01:11.1]} 24... Kh8 {[%clk 0:00:15.3]}
25. Bxd5 {[%clk 0:01:09.5]} 25... Nxc5 {[%clk 0:00:15]} 26. Bxf7 {[%clk
0:01:06.4]} 26... Nxb3 {[%clk 0:00:14.8]} 27. Bf6+ {[%clk 0:01:06]} 27... Kh7
{[%clk 0:00:15.4]} 28. Rg7+ {[%clk 0:00:55.9]} 28... Kh6 {[%clk 0:00:15.7]} 29.
Bxb3 {[%clk 0:00:53.5]} 29... Qc8 {[%clk 0:00:08.3]} 30. Kd2 {[%clk 0:00:51.5]}
30... Qf5 {[%clk 0:00:05.7]} 31. Rf7 {[%clk 0:00:37.4]} 31... Qf4+ {[%clk
0:00:02.3]} 32. Kc2 {[%clk 0:00:37.8]} 32... Qg4 {[%clk 0:00:03]} 33. Bg5+
{[%clk 0:00:31.3]} 33... Kxh5 {[%clk 0:00:03]} 34. Kd2 {[%clk 0:00:30.4]} 34...
e4 {[%clk 0:00:02.2]} 35. Raf1 {[%clk 0:00:25.4]} 35... e3+ {[%clk 0:00:02.3]}
36. Kd1 {[%clk 0:00:25.7]} 36... Qg2 {[%clk 0:00:01.5]} 37. Rh7+ {[%clk
0:00:24]} 37... Kg4 {[%clk 0:00:02.2]} 38. Rh6 {[%clk 0:00:24.9]} 38... Kh3
{[%clk 0:00:02.7]} 39. Rf3+ {[%clk 0:00:24.5]} 39... Kh2 {[%clk 0:00:03.1]} 40.
Rg6 {[%clk 0:00:20.7]} 40... Re8 {[%clk 0:00:02.1]} 41. Bf4+ {[%clk 0:00:20.2]}
1-0